fUST/lending_fUST_20250330
["ID","MTS","AMOUNT","RATE_DAILY","PERIOD"]
[356856648,1743336668227,-1550.34,0.00022191,2]
[356856649,1743336668236,-736.27,0.00022191,2]
[356856650,1743336668246,-944.78,0.00022191,2]
[356856651,1743336668256,-552.72,0.00022191,2]
[356856652,1743336668266,-1984.0,0.00022191,2]
[356856653,1743336668276,-500.0,0.00022191,2]
[356856654,1743336668286,-4192.73,0.00022191,2]
[356856655,1743336668295,-500.0,0.00022191,2]
[356856656,1743336668305,-4062.87,0.00022191,2]
[356856657,1743336668315,-1610.13,0.00022191,2]
[356856658,1743336668324,-500.0,0.00022191,2]
[356856659,1743336668334,-527.52,0.00022191,2]
[356856660,1743336668343,-551.98,0.00022191,2]
[356856661,1743336668353,-5745.56,0.00022191,2]
[356856662,1743336668362,-1105.77,0.00022191,2]
[356856663,1743336668372,-2204.43,0.00022191,2]
[356856664,1743336668381,-1201.49,0.00022191,2]
[356856665,1743336668391,-2246.36,0.00022191,2]
[356856666,1743336668400,-810.23,0.00022191,2]
[356856667,1743336668410,-1362.91,0.00022191,2]
[356856668,1743336668420,-2003.96,0.00022191,2]
[356856669,1743336668430,-929.62,0.00022191,2]
[356856670,1743336668441,-878.79,0.00022191,2]
[356856671,1743336668450,-500.0,0.00022191,2]
[356856672,1743336668460,-500.0,0.00022191,2]
[356856673,1743336668470,-500.0,0.00022191,2]
[356856674,1743336668480,-522.62,0.00022191,2]
[356856675,1743336668490,-3169.96,0.00022191,2]
[356856676,1743336668499,-500.0,0.00022191,2]
[356856677,1743336668509,-863.37,0.00022191,2]
[356856678,1743336668518,-500.0,0.00022191,2]
[356856679,1743336668528,-784.51,0.00022191,2]
[356856680,1743336668537,-678.48,0.00022191,2]
[356856681,1743336668547,-2366.19,0.00022191,2]
[356856682,1743336668556,-5982.6,0.00022191,2]
[356856683,1743336668565,-500.0,0.00022191,2]
[356856684,1743336668575,-500.0,0.00022191,2]
[356856685,1743336668585,-3762.67,0.00022191,2]
[356856686,1743336668594,-15868.4,0.00022191,2]
[356856687,1743336668604,-710.42,0.00022191,2]
[356856688,1743336668613,-500.0,0.00022191,2]
[356856689,1743336668623,-6137.71,0.00022191,2]
[356856690,1743336668633,-4594.19,0.00022191,2]
[356856691,1743336668642,-792.46,0.00022191,2]
[356856692,1743336668652,-704.22,0.00022191,2]
[356856693,1743336668662,-2499.63,0.00022191,2]
[356856694,1743336668671,-1234.8,0.00022191,2]
[356856695,1743336668681,-5195.9,0.00022191,2]
[356856696,1743336668691,-1838.27,0.00022191,2]
[356856697,1743336668700,-12960.42,0.00022191,2]
[356856698,1743336668710,-500.0,0.00022191,2]
[356856699,1743336668720,-1000.0,0.00022191,7]
[356856700,1743336668730,-2670.09,0.00022191,2]
[356856701,1743336668740,-500.0,0.00022191,2]
[356856702,1743336668755,-2660.8,0.00022191,2]
[356856703,1743336668764,-5869.07,0.00022191,2]
[356856704,1743336668773,-986.66,0.00022191,2]
[356856705,1743336668782,-762.09,0.00022191,2]
[356856706,1743336668794,-615.49,0.00022191,2]
[356856707,1743336668804,-674.35,0.00022191,2]
[356856708,1743336668813,-2378.15,0.00022191,2]
[356856709,1743336668824,-1800.76,0.00022191,2]
[356856710,1743336668834,-1297.51,0.00022191,2]
[356856711,1743336668843,-500.0,0.00022191,2]
[356856712,1743336668853,-1268.95,0.00022191,2]
[356856713,1743336668863,-524.33,0.00022191,2]
[356856714,1743336668872,-881.02,0.00022191,2]
[356856715,1743336668882,-15685.99,0.00022191,2]
[356856716,1743336668891,-1200.54,0.00022191,2]
[356856717,1743336668899,-500.0,0.00022191,2]
[356856718,1743336668909,-629.01,0.00022191,2]
[356856719,1743336668919,-8052.37,0.00022191,2]
[356856720,1743336668928,-946.43,0.00022191,2]
[356856721,1743336668938,-503.91,0.00022191,2]
[356856722,1743336668948,-573.79,0.00022191,2]
[356856723,1743336668957,-808.8,0.00022191,2]
[356856724,1743336668967,-500.0,0.00022191,2]
[356856725,1743336668977,-767.64,0.00022191,2]
[356856726,1743336668987,-804.42,0.00022191,2]
[356856727,1743336668996,-737.11,0.00022191,2]
[356856728,1743336669005,-500.0,0.00022191,2]
[356856729,1743336669015,-8539.25,0.00022191,2]
[356856730,1743336669024,-540.62,0.00022191,2]
[356856731,1743336669034,-3723.83,0.00022191,2]
[356856732,1743336669043,-150.29,0.00022192,2]
[356856733,1743336669052,-500.0,0.00022192,2]
[356856734,1743336669062,-500.0,0.00022192,2]
[356856735,1743336669071,-150.29,0.00022329,2]
[356856736,1743336669080,-500.0,0.00022329,2]
[356856737,1743336669090,-500.0,0.00022329,2]
[356856738,1743336669105,-7704.745185,0.000224,4]
[356856739,1743336669115,-7704.74518475,0.000224,4]
[356856740,1743336669124,-7704.74518475,0.000224,4]
[356856741,1743336669134,-7704.74518475,0.000224,4]
[356856742,1743336669143,-7704.74518475,0.000224,4]
[356856743,1743336669153,-7704.74518475,0.000224,4]
[356856744,1743336669163,-7704.74518475,0.000224,4]
[356856745,1743336669172,-7704.74518475,0.000224,4]
[356856746,1743336669181,-7704.74518475,0.000224,4]
[356856747,1743336669191,-7704.74518475,0.000224,4]
[356856748,1743336669200,-7704.74518475,0.000224,4]
[356856749,1743336669210,-519.21102702,0.00022465,2]
[356856750,1743336669219,-500.0,0.00022465,2]
[356856751,1743336669228,-728.46,0.00022465,2]
[356856752,1743336669238,-997.04,0.00022465,2]
[356856753,1743336669247,-500.0,0.00022465,2]
[356856754,1743336669259,-500.0,0.00022465,2]
[356856755,1743336669269,-500.0,0.00022465,2]
[356856756,1743336669278,-971.02,0.00022465,2]
[356856757,1743336669450,-500.0,0.00022465,2]
[356856758,1743336669461,-500.0,0.00022465,2]
[356856759,1743336669470,-500.0,0.00022465,2]
[356856760,1743336669479,-500.0,0.00022465,2]
[356856761,1743336669489,-586.47,0.00022465,2]
[356856762,1743336669498,-651.92,0.00022465,2]
[356856763,1743336669507,-500.0,0.00022465,2]
[356856764,1743336669518,-500.0,0.00022465,2]
[356856765,1743336669527,-500.0,0.00022465,2]
[356856766,1743336669537,-694.25,0.00022465,2]
[356856767,1743336669546,-500.0,0.00022465,2]
[356856768,1743336669555,-909.26,0.00022465,2]
[356856769,1743336669565,-500.0,0.00022465,2]
[356856770,1743336669574,-508.9,0.00022465,2]
[356856771,1743336669583,-656.04,0.00022465,2]
[356856772,1743336669592,-500.0,0.00022465,2]
[356856773,1743336669602,-500.0,0.00022465,2]
[356856774,1743336669611,-500.0,0.00022465,2]
[356856775,1743336669620,-500.0,0.00022465,2]
[356856776,1743336669629,-307.66121278,0.00022465,2]
[356856777,1743336669638,-500.0,0.00022465,2]
[356856778,1743336669647,-770.23,0.00022465,2]
[356856779,1743336669656,-1426.76,0.00022465,2]
[356856780,1743336669668,-500.0,0.00022465,2]
[356856781,1743336669678,-739.19,0.00022465,2]
[356856782,1743336669687,-500.0,0.00022465,2]
[356856783,1743336669696,-500.0,0.00022465,2]
[356856784,1743336669705,-572.06,0.00022465,2]
[356856785,1743336669715,-500.0,0.00022465,2]
[356856786,1743336669724,-500.0,0.00022465,2]
[356856787,1743336669734,-820.71,0.00022465,2]
[356856788,1743336669746,-500.0,0.00022465,2]
[356856789,1743336669756,-792.51,0.00022465,2]
[356856790,1743336669765,-439.14140334,0.00022465,2]
[356856791,1743336669775,-562.68895755,0.00022465,2]
[356856792,1743336669784,-643.09,0.00022465,2]
[356856793,1743336669794,-500.0,0.00022465,2]
[356856794,1743336669804,-500.0,0.00022465,2]
[356856795,1743336669814,-500.0,0.00022465,2]
[356856796,1743336669825,-500.0,0.00022465,2]
[356856797,1743336669835,-500.0,0.00022465,2]
[356856798,1743336669846,-587.53626835,0.00022465,2]
[356856799,1743336669855,-1373.59,0.00022465,2]
[356856800,1743336669865,-500.0,0.00022465,2]
[356856801,1743336669875,-1089.35,0.00022465,2]
[356856802,1743336669884,-510.53,0.00022465,2]
[356856803,1743336669893,-786.5,0.00022465,2]
[356856804,1743336669902,-500.0,0.00022465,2]
[356856805,1743336669913,-1995.85,0.00022465,2]
[356856806,1743336669923,-200.0,0.00022465,2]
[356856807,1743336669932,-1928.93,0.00022465,2]
[356856808,1743336669942,-523.74,0.00022465,2]
[356856809,1743336669951,-500.0,0.00022465,2]
[356856810,1743336669960,-523.69,0.00022465,2]
[356856811,1743336669969,-500.0,0.00022465,2]
[356856812,1743336669978,-513.67,0.00022465,2]
[356856813,1743336669988,-1946.49,0.00022465,2]
[356856814,1743336669997,-512.33,0.00022465,2]
[356856815,1743336670007,-1442.4,0.00022465,2]
[356856816,1743336670016,-401.20753648,0.00022465,2]
[356856817,1743336670026,-514.51,0.00022465,2]
[356856818,1743336670035,-500.0,0.00022465,2]
[356856819,1743336670045,-990.4,0.00022465,2]
[356856820,1743336670055,-942.64,0.00022465,2]
[356856821,1743336670064,-500.0,0.00022465,2]
[356856822,1743336670073,-500.0,0.00022465,2]
[356856823,1743336670083,-990.42,0.00022465,2]
[356856824,1743336670092,-500.0,0.00022465,2]
[356856825,1743336670102,-500.0,0.00022465,2]
[356856826,1743336670111,-500.0,0.00022465,2]
[356856827,1743336670121,-500.0,0.00022465,2]
[356856828,1743336670130,-2586.18,0.00022465,2]
[356856829,1743336670140,-1024.32,0.00022465,2]
[356856830,1743336670149,-1087.6,0.00022465,2]
[356856831,1743336670159,-516.69,0.00022465,2]
[356856832,1743336670169,-500.0,0.00022465,2]
[356856833,1743336670178,-864.19,0.00022465,2]
[356856834,1743336670187,-683.23,0.00022465,2]
[356856835,1743336670196,-903.38,0.00022465,2]
[356856836,1743336670205,-500.0,0.00022465,2]
[356856837,1743336670215,-937.8,0.00022465,2]
[356856838,1743336670224,-500.0,0.00022465,2]
[356856839,1743336670233,-1131.56,0.00022465,2]
[356856840,1743336670242,-798.99,0.00022465,2]
[356856841,1743336670252,-1481.39,0.00022465,2]
[356856842,1743336670261,-500.0,0.00022465,2]
[356856843,1743336670270,-500.0,0.00022465,2]
[356856844,1743336670280,-500.0,0.00022465,2]
[356856845,1743336670289,-517.61,0.00022465,2]
[356856846,1743336670299,-500.0,0.00022465,2]
[356856847,1743336670308,-668.21,0.00022465,2]
[356856848,1743336670317,-687.74,0.00022465,2]
[356856849,1743336670326,-899.15,0.00022465,2]
[356856850,1743336670336,-707.97,0.00022465,2]
[356856851,1743336670346,-1296.96,0.00022465,2]
[356856852,1743336670355,-500.0,0.00022465,2]
[356856853,1743336670364,-500.0,0.00022465,2]
[356856854,1743336670373,-500.0,0.00022465,2]
[356856855,1743336670383,-1345.33,0.00022465,2]
[356856856,1743336670392,-500.0,0.00022465,2]
[356856857,1743336670401,-895.06,0.00022465,2]
[356856858,1743336670412,-2501.82,0.00022465,2]
[356856859,1743336670421,-500.0,0.00022465,2]
[356856860,1743336670431,-914.71,0.00022465,2]
[356856861,1743336670440,-500.0,0.00022465,2]
[356856862,1743336670450,-737.75,0.00022465,2]
[356856863,1743336670459,-500.0,0.00022465,2]
[356856864,1743336670468,-4129.73,0.00022465,2]
[356856865,1743336670478,-776.32,0.00022465,2]
[356856866,1743336670487,-500.0,0.00022465,2]
[356856867,1743336670497,-4902.77,0.00022465,2]
[356856868,1743336670506,-500.0,0.00022465,2]
[356856869,1743336670516,-407.78295474,0.00022465,2]
[356856870,1743336670525,-500.0,0.00022465,2]
[356856871,1743336670534,-1672.32,0.00022465,2]
[356856872,1743336670544,-643.85,0.00022465,2]
[356856873,1743336670554,-824.37,0.00022465,2]
[356856874,1743336670567,-4151.45,0.00022465,2]
[356856875,1743336670577,-2985.11,0.00022465,2]
[356856876,1743336670586,-500.0,0.00022465,2]
[356856877,1743336670596,-1413.31,0.00022465,2]
[356856878,1743336670605,-500.0,0.00022465,2]
[356856879,1743336670614,-500.0,0.00022465,2]
[356856880,1743336670624,-500.0,0.00022465,2]
[356856881,1743336670633,-707.76,0.00022465,2]
[356856882,1743336670643,-500.0,0.00022465,2]
[356856883,1743336670653,-699.65,0.00022465,2]
[356856884,1743336670662,-500.0,0.00022465,2]
[356856885,1743336670671,-1550.34,0.00022465,2]
[356856886,1743336670681,-736.27,0.00022465,2]
[356856887,1743336670691,-944.78,0.00022465,2]
[356856888,1743336670700,-552.72,0.00022465,2]
[356856889,1743336670710,-1984.0,0.00022465,2]
[356856890,1743336670719,-500.0,0.00022465,2]
[356856891,1743336670729,-4192.73,0.00022465,2]
[356856892,1743336670740,-500.0,0.00022465,2]
[356856893,1743336670752,-4062.87,0.00022465,2]
[356856894,1743336670762,-1610.13,0.00022465,2]
[356856895,1743336670771,-500.0,0.00022465,2]
[356856896,1743336670780,-527.52,0.00022465,2]
[356856897,1743336670790,-551.98,0.00022465,2]
[356856898,1743336670800,-5745.56,0.00022465,2]
[356856899,1743336670810,-1105.77,0.00022465,2]
[356856900,1743336670820,-2204.43,0.00022465,2]
[356856901,1743336670831,-1201.49,0.00022465,2]
[356856902,1743336670841,-2246.36,0.00022465,2]
[356856903,1743336670851,-810.23,0.00022465,2]
[356856904,1743336670861,-1362.91,0.00022465,2]
[356856905,1743336670870,-2003.96,0.00022465,2]
[356856906,1743336670880,-929.62,0.00022465,2]
[356856907,1743336670890,-878.79,0.00022465,2]
[356856908,1743336670900,-500.0,0.00022465,2]
[356856909,1743336670910,-500.0,0.00022465,2]
[356856910,1743336670920,-500.0,0.00022465,2]
[356856911,1743336670930,-522.62,0.00022465,2]
[356856912,1743336670940,-3169.96,0.00022465,2]
[356856913,1743336670950,-500.0,0.00022465,2]
[356856914,1743336670959,-863.37,0.00022465,2]
[356856915,1743336670969,-628.26441565,0.00022465,2]
[356856916,1743336670978,-784.51,0.00022465,2]
[356856917,1743336670988,-678.48,0.00022465,2]
[356856918,1743336670997,-2366.19,0.00022465,2]
[356856919,1743336671007,-5982.6,0.00022465,2]
[356856920,1743336671017,-500.0,0.00022465,2]
[356856921,1743336671027,-500.0,0.00022465,2]
[356856922,1743336671037,-3762.67,0.00022465,2]
[356856923,1743336671046,-15868.4,0.00022465,2]
[356856924,1743336671056,-710.42,0.00022465,2]
[356856925,1743336671066,-633.91092363,0.00022465,2]
[356856926,1743336671076,-6137.71,0.00022465,2]
[356856927,1743336671086,-4594.19,0.00022465,2]
[356856928,1743336671096,-792.46,0.00022465,2]
[356856929,1743336671106,-704.22,0.00022465,2]
[356856930,1743336671115,-2499.63,0.00022465,2]
[356856931,1743336671125,-1234.8,0.00022465,2]
[356856932,1743336671135,-5195.9,0.00022465,2]
[356856933,1743336671144,-1838.27,0.00022465,2]
[356856934,1743336671154,-12960.42,0.00022465,2]
[356856935,1743336671165,-500.0,0.00022465,2]
[356856936,1743336671175,-1000.0,0.00022465,7]
[356856937,1743336671185,-2670.09,0.00022465,2]
[356856938,1743336671194,-500.0,0.00022465,2]
[356856939,1743336671205,-2660.8,0.00022465,2]
[356856940,1743336671214,-5869.07,0.00022465,2]
[356856941,1743336671224,-986.66,0.00022465,2]
[356856942,1743336671234,-762.09,0.00022465,2]
[356856943,1743336671244,-615.49,0.00022465,2]
[356856944,1743336671254,-674.35,0.00022465,2]
[356856945,1743336671263,-2378.15,0.00022465,2]
[356856946,1743336671272,-1800.76,0.00022465,2]
[356856947,1743336671282,-1297.51,0.00022465,2]
[356856948,1743336671291,-500.0,0.00022465,2]
[356856949,1743336671301,-1268.95,0.00022465,2]
[356856950,1743336671311,-524.33,0.00022465,2]
[356856951,1743336671321,-881.02,0.00022465,2]
[356856952,1743336671330,-15685.99,0.00022465,2]
[356856953,1743336671341,-1200.54,0.00022465,2]
[356856954,1743336671351,-279.02519531,0.00022465,2]
[356856955,1743336671361,-629.01,0.00022465,2]
[356856956,1743336671371,-8052.37,0.00022465,2]
[356856957,1743336671381,-946.43,0.00022465,2]
[356856958,1743336671391,-503.91,0.00022465,2]
[356856959,1743336671401,-573.79,0.00022465,2]
[356856960,1743336671410,-808.8,0.00022465,2]
[356856961,1743336671420,-500.0,0.00022465,2]
[356856962,1743336671431,-767.64,0.00022465,2]
[356856963,1743336671441,-804.42,0.00022465,2]
[356856964,1743336671451,-737.11,0.00022465,2]
[356856965,1743336671460,-500.0,0.00022465,2]
[356856966,1743336671470,-8539.25,0.00022465,2]
[356856967,1743336671480,-540.62,0.00022465,2]
[356856968,1743336671489,-3723.83,0.00022465,2]
[356856969,1743336671499,-208.08056657,0.00022466,2]
[356856970,1743336671509,-500.0,0.00022466,2]
[356856971,1743336671519,-500.0,0.00022466,2]
[356856972,1743336671529,-7704.74518475,0.00022486,4]
[356856973,1743336671538,-500.0,0.00022603,2]
[356856974,1743336671548,-500.0,0.00022603,2]
[356856975,1743336671558,-500.0,0.00022739,2]
[356856976,1743336671567,-728.46,0.00022739,2]
[356856977,1743336671577,-997.04,0.00022739,2]
[356856978,1743336671587,-500.0,0.00022739,2]
[356856979,1743336671596,-500.0,0.00022739,2]
[356856980,1743336671605,-500.0,0.00022739,2]
[356856981,1743336671615,-971.02,0.00022739,2]
[356856982,1743336671624,-500.0,0.00022739,2]
[356856983,1743336671634,-500.0,0.00022739,2]
[356856984,1743336671643,-500.0,0.00022739,2]
[356856985,1743336671652,-500.0,0.00022739,2]
[356856986,1743336671663,-586.47,0.00022739,2]
[356856987,1743336671672,-651.92,0.00022739,2]
[356856988,1743336671682,-297.331146,0.00022739,2]
[356856989,1743336671692,-500.0,0.00022739,2]
[356856990,1743336671702,-500.0,0.00022739,2]
[356856991,1743336671712,-694.25,0.00022739,2]
[356856992,1743336671721,-500.0,0.00022739,2]
[356856993,1743336671731,-909.26,0.00022739,2]
[356856994,1743336671741,-582.50130018,0.00022739,2]
[356856995,1743336671756,-508.9,0.00022739,2]
[356856996,1743336671766,-656.04,0.00022739,2]
[356856997,1743336671776,-500.0,0.00022739,2]
[356856998,1743336671787,-254.72892665,0.00022739,2]
[356856999,1743336671797,-500.0,0.00022739,2]
[356857000,1743336671807,-500.0,0.00022739,2]
[356857001,1743336671816,-500.0,0.00022739,2]
[356857002,1743336671827,-770.23,0.00022739,2]
[356857003,1743336671837,-1426.76,0.00022739,2]
[356857004,1743336671847,-500.0,0.00022739,2]
[356857005,1743336671857,-739.19,0.00022739,2]
[356857006,1743336671866,-607.07424226,0.00022739,2]
[356857007,1743336671876,-500.0,0.00022739,2]
[356857008,1743336671885,-572.06,0.00022739,2]
[356857009,1743336671895,-500.0,0.00022739,2]
[356857010,1743336671904,-500.0,0.00022739,2]
[356857011,1743336671914,-820.71,0.00022739,2]
[356857012,1743336671923,-500.0,0.00022739,2]
[356857013,1743336671932,-792.51,0.00022739,2]
[356857014,1743336671942,-643.09,0.00022739,2]
[356857015,1743336672098,-500.0,0.00022739,2]
[356857016,1743336672109,-500.0,0.00022739,2]
[356857017,1743336672118,-483.41076311,0.00022739,2]
[356857018,1743336672128,-500.0,0.00022739,2]
[356857019,1743336672137,-500.0,0.00022739,2]
[356857020,1743336672147,-500.0,0.00022739,2]
[356857021,1743336672157,-1373.59,0.00022739,2]
[356857022,1743336672167,-1089.35,0.00022739,2]
[356857023,1743336672176,-510.53,0.00022739,2]
[356857024,1743336672186,-786.5,0.00022739,2]
[356857025,1743336672195,-500.0,0.00022739,2]
[356857026,1743336672205,-1995.85,0.00022739,2]
[356857027,1743336672215,-200.0,0.00022739,2]
[356857028,1743336672224,-1928.93,0.00022739,2]
[356857029,1743336672234,-523.74,0.00022739,2]
[356857030,1743336672243,-500.0,0.00022739,2]
[356857031,1743336672253,-523.69,0.00022739,2]
[356857032,1743336672262,-500.0,0.00022739,2]
[356857033,1743336672272,-513.67,0.00022739,2]
[356857034,1743336672281,-1946.49,0.00022739,2]
[356857035,1743336672291,-512.33,0.00022739,2]
[356857036,1743336672300,-1442.4,0.00022739,2]
[356857037,1743336672310,-514.51,0.00022739,2]
[356857038,1743336672319,-500.0,0.00022739,2]
[356857039,1743336672329,-990.4,0.00022739,2]
[356857040,1743336672339,-942.64,0.00022739,2]
[356857041,1743336672348,-486.15668948,0.00022739,2]
[356857042,1743336672358,-500.0,0.00022739,2]
[356857043,1743336672368,-990.42,0.00022739,2]
[356857044,1743336672378,-500.0,0.00022739,2]
[356857045,1743336672387,-500.0,0.00022739,2]
[356857046,1743336672397,-500.0,0.00022739,2]
[356857047,1743336672407,-500.0,0.00022739,2]
[356857048,1743336672416,-2586.18,0.00022739,2]
[356857049,1743336672429,-1024.32,0.00022739,2]
[356857050,1743336672444,-1087.6,0.00022739,2]
[356857051,1743336672454,-516.69,0.00022739,2]
[356857052,1743336672465,-500.0,0.00022739,2]
[356857053,1743336672474,-864.19,0.00022739,2]
[356857054,1743336672484,-683.23,0.00022739,2]
[356857055,1743336672493,-903.38,0.00022739,2]
[356857056,1743336672503,-500.0,0.00022739,2]
[356857057,1743336672512,-937.8,0.00022739,2]
[356857058,1743336672522,-500.0,0.00022739,2]
[356857059,1743336672532,-1131.56,0.00022739,2]
[356857060,1743336672542,-1481.39,0.00022739,2]
[356857061,1743336672551,-798.99,0.00022739,2]
[356857062,1743336672560,-500.0,0.00022739,2]
[356857063,1743336672571,-207.52058057,0.00022739,2]
[356857064,1743336672580,-500.0,0.00022739,2]
[356857065,1743336672590,-517.61,0.00022739,2]
[356857066,1743336672600,-500.0,0.00022739,2]
[356857067,1743336672610,-668.21,0.00022739,2]
[356857068,1743336672620,-687.74,0.00022739,2]
[356857069,1743336672630,-899.15,0.00022739,2]
[356857070,1743336672640,-707.97,0.00022739,2]
[356857071,1743336672650,-1296.96,0.00022739,2]
[356857072,1743336672659,-500.0,0.00022739,2]
[356857073,1743336672669,-500.0,0.00022739,2]
[356857074,1743336672678,-500.0,0.00022739,2]
[356857075,1743336672687,-1345.33,0.00022739,2]
[356857076,1743336672697,-500.0,0.00022739,2]
[356857077,1743336672706,-895.06,0.00022739,2]
[356857078,1743336672716,-2501.82,0.00022739,2]
[356857079,1743336672725,-500.0,0.00022739,2]
[356857080,1743336672735,-914.71,0.00022739,2]
[356857081,1743336672744,-500.0,0.00022739,2]
[356857082,1743336672757,-737.75,0.00022739,2]
[356857083,1743336672767,-500.0,0.00022739,2]
[356857084,1743336672776,-4129.73,0.00022739,2]
[356857085,1743336672786,-776.32,0.00022739,2]
[356857086,1743336672796,-500.0,0.00022739,2]
[356857087,1743336672805,-4902.77,0.00022739,2]
[356857088,1743336672815,-500.0,0.00022739,2]
[356857089,1743336672824,-500.0,0.00022739,2]
[356857090,1743336672836,-1672.32,0.00022739,2]
[356857091,1743336672846,-643.85,0.00022739,2]
[356857092,1743336672856,-824.37,0.00022739,2]
[356857093,1743336672866,-4151.45,0.00022739,2]
[356857094,1743336672876,-2985.11,0.00022739,2]
[356857095,1743336672886,-500.0,0.00022739,2]
[356857096,1743336672895,-1413.31,0.00022739,2]
[356857097,1743336672905,-500.0,0.00022739,2]
[356857098,1743336672915,-209.25334857,0.00022739,2]
[356857099,1743336672926,-500.0,0.00022739,2]
[356857100,1743336672935,-707.76,0.00022739,2]
[356857101,1743336672945,-500.0,0.00022739,2]
[356857102,1743336672955,-699.65,0.00022739,2]
[356857103,1743336672964,-500.0,0.00022739,2]
[356857104,1743336672974,-1550.34,0.00022739,2]
[356857105,1743336672984,-736.27,0.00022739,2]
[356857106,1743336672993,-944.78,0.00022739,2]
[356857107,1743336673003,-552.72,0.00022739,2]
[356857108,1743336673012,-1984.0,0.00022739,2]
[356857109,1743336673022,-500.0,0.00022739,2]
[356857110,1743336673032,-4192.73,0.00022739,2]
[356857111,1743336673043,-500.0,0.00022739,2]
[356857112,1743336673053,-4062.87,0.00022739,2]
[356857113,1743336673062,-1610.13,0.00022739,2]
[356857114,1743336673072,-271.18586406,0.00022739,2]
[356857115,1743336673081,-527.52,0.00022739,2]
[356857116,1743336673091,-551.98,0.00022739,2]
[356857117,1743336673102,-5745.56,0.00022739,2]
[356857118,1743336673111,-1105.77,0.00022739,2]
[356857119,1743336673121,-2204.43,0.00022739,2]
[356857120,1743336673131,-1201.49,0.00022739,2]
[356857121,1743336673141,-2246.36,0.00022739,2]
[356857122,1743336673151,-810.23,0.00022739,2]
[356857123,1743336673160,-1362.91,0.00022739,2]
[356857124,1743336673170,-2003.96,0.00022739,2]
[356857125,1743336673180,-929.62,0.00022739,2]
[356857126,1743336673190,-878.79,0.00022739,2]
[356857127,1743336673201,-500.0,0.00022739,2]
[356857128,1743336673211,-500.0,0.00022739,2]
[356857129,1743336673220,-500.0,0.00022739,2]
[356857130,1743336673231,-522.62,0.00022739,2]
[356857131,1743336673241,-3169.96,0.00022739,2]
[356857132,1743336673251,-500.0,0.00022739,2]
[356857133,1743336673260,-863.37,0.00022739,2]
[356857134,1743336673270,-784.51,0.00022739,2]
[356857135,1743336673279,-678.48,0.00022739,2]
[356857136,1743336673289,-2366.19,0.00022739,2]
[356857137,1743336673299,-5982.6,0.00022739,2]
[356857138,1743336673309,-500.0,0.00022739,2]
[356857139,1743336673319,-500.0,0.00022739,2]
[356857140,1743336673329,-3762.67,0.00022739,2]
[356857141,1743336673338,-15868.4,0.00022739,2]
[356857142,1743336673348,-710.42,0.00022739,2]
[356857143,1743336673358,-6137.71,0.00022739,2]
[356857144,1743336673367,-4594.19,0.00022739,2]
[356857145,1743336673376,-792.46,0.00022739,2]
[356857146,1743336673386,-704.22,0.00022739,2]
[356857147,1743336673395,-2499.63,0.00022739,2]